[Event "Titled Tuesday Blitz June 21 Early 2022"]
[White "Warchol, Kamil"]
[Black "Pappelis, Dimitrios"]
[WhiteFideId "21858241"]
[BlackFideId "4215281"]
[WhiteElo "1951"]
[BlackElo "1998"]
[Result "1-0"]
[Round "06"]
[TimeControl "180+1"]
[Date "2022.06.21"]
[WhiteClock "0:00:07"]
[BlackClock "0:00:59"]

1. e4 {[%clk 0:01:14]}  c5 {[%clk 0:02:57]} 2. Nf3 {[%clk 0:01:12]}  Nc6 {[%clk 0:02:57]} 3. Bb5 {[%clk 0:01:09]}  Nf6 {[%clk 0:02:55]} 4. e5 {[%clk 0:01:04]}  Nd5 {[%clk 0:02:53]} 5. Nc3 {[%clk 0:01:00]}  Nc7 {[%clk 0:02:52]} 6. Bxc6 {[%clk 0:01:00]}  dxc6 {[%clk 0:02:52]} 7. d3 {[%clk 0:00:59]}  g6 {[%clk 0:02:51]} 8. O-O {[%clk 0:00:58]}  Bg7 {[%clk 0:02:52]} 9. Re1 {[%clk 0:00:57]}  O-O {[%clk 0:02:51]} 10. Ne4 {[%clk 0:00:57]}  Ne6 {[%clk 0:02:50]} 11. c3 {[%clk 0:00:55]}  b6 {[%clk 0:02:48]} 12. Be3 {[%clk 0:00:54]}  a5 {[%clk 0:02:39]} 13. Qd2 {[%clk 0:00:52]}  Ba6 {[%clk 0:02:37]} 14. Rad1 {[%clk 0:00:51]}  Re8 {[%clk 0:02:31]} 15. Bh6 {[%clk 0:00:50]}  Bh8 {[%clk 0:02:32]} 16. Nfg5 {[%clk 0:00:45]}  Qd7 {[%clk 0:02:12]} 17. Nxe6 {[%clk 0:00:39]}  Qxe6 {[%clk 0:02:13]} 18. d4 {[%clk 0:00:40]}  cxd4 {[%clk 0:02:11]} 19. cxd4 {[%clk 0:00:41]}  Rad8 {[%clk 0:02:11]} 20. Qf4 {[%clk 0:00:39]}  Qf5 {[%clk 0:02:09]} 21. Qxf5 {[%clk 0:00:38]}  gxf5 {[%clk 0:02:10]} 22. Ng3 {[%clk 0:00:38]}  e6 {[%clk 0:02:07]} 23. Bg5 {[%clk 0:00:36]}  Rd7 {[%clk 0:02:05]} 24. Nh5 {[%clk 0:00:36]}  Bc4 {[%clk 0:01:55]} 25. Re3 {[%clk 0:00:34]}  f6 {[%clk 0:01:47]} 26. Bxf6 {[%clk 0:00:32]}  Kf7 {[%clk 0:01:46]} 27. Rg3 {[%clk 0:00:31]}  Bxf6 {[%clk 0:01:03]} 28. Nxf6 {[%clk 0:00:30]}  Red8 {[%clk 0:01:03]} 29. Nxd7 {[%clk 0:00:23]}  Rxd7 {[%clk 0:01:04]} 30. b3 {[%clk 0:00:22]}  Bd5 {[%clk 0:00:59]} 31. f3 {[%clk 0:00:21]}  Ra7 {[%clk 0:00:59]} 32. Rd2 {[%clk 0:00:15]}  a4 {[%clk 0:00:59]} 33. b4 {[%clk 0:00:16]}  a3 {[%clk 0:00:59]} 34. Rh3 {[%clk 0:00:14]}  Kg6 {[%clk 0:00:57]} 35. f4 {[%clk 0:00:13]}  Ra4 {[%clk 0:00:56]} 36. Rdd3 {[%clk 0:00:13]}  Rxb4 {[%clk 0:00:56]} 37. Rxa3 {[%clk 0:00:13]}  Rb1+ {[%clk 0:00:55]} 38. Kf2 {[%clk 0:00:12]}  Rb2+ {[%clk 0:00:56]} 39. Ke1 {[%clk 0:00:12]}  Rxg2 {[%clk 0:00:54]} 40. Rag3+ {[%clk 0:00:11]}  Rxg3 {[%clk 0:00:53]} 41. Rxg3+ {[%clk 0:00:12]}  Kf7 {[%clk 0:00:53]} 42. a3 {[%clk 0:00:11]}  c5 {[%clk 0:00:50]} 43. dxc5 {[%clk 0:00:10]}  bxc5 {[%clk 0:00:51]} 44. Kd2 {[%clk 0:00:08]}  h5 {[%clk 0:00:50]} 45. Kc3 {[%clk 0:00:08]}  Ke7 {[%clk 0:00:49]} 46. Rh3 {[%clk 0:00:07]}  Kd7 {[%clk 0:00:46]} 47. Rxh5 {[%clk 0:00:07]}  Kc6 {[%clk 0:00:47]} 48. Rh8 {[%clk 0:00:06]}  Kd7 {[%clk 0:00:47]} 49. Rh7+ {[%clk 0:00:04]}  Ke8 {[%clk 0:00:48]} 50. h4 {[%clk 0:00:05]}  Kf8 {[%clk 0:00:48]} 51. h5 {[%clk 0:00:05]}  Kg8 {[%clk 0:00:48]} 52. Ra7 {[%clk 0:00:06]}  Kh8 {[%clk 0:00:49]} 53. h6 {[%clk 0:00:06]}  Kg8 {[%clk 0:00:49]} 54. Rc7 {[%clk 0:00:06]}  Kh8 {[%clk 0:00:48]} 55. Rxc5 {[%clk 0:00:06]}  Kh7 {[%clk 0:00:48]} 56. Rxd5 {[%clk 0:00:07]}  exd5 {[%clk 0:00:49]} 57. Kd4 {[%clk 0:00:07]}  Kxh6 {[%clk 0:00:49]} 58. Kxd5 {[%clk 0:00:08]}  Kh5 {[%clk 0:00:50]} 59. e6 {[%clk 0:00:08]}  Kg4 {[%clk 0:00:51]} 60. e7 {[%clk 0:00:08]}  Kxf4 {[%clk 0:00:51]} 61. e8=Q {[%clk 0:00:08]}  Kg4 {[%clk 0:00:52]} 62. Qe5 {[%clk 0:00:08]}  f4 {[%clk 0:00:53]} 63. a4 {[%clk 0:00:09]}  f3 {[%clk 0:00:54]} 64. a5 {[%clk 0:00:09]}  f2 {[%clk 0:00:55]} 65. Qf6 {[%clk 0:00:09]}  f1=Q {[%clk 0:00:56]} 66. Qxf1 {[%clk 0:00:08]}  Kg3 {[%clk 0:00:57]} 67. a6 {[%clk 0:00:08]}  Kh2 {[%clk 0:00:58]} 68. a7 {[%clk 0:00:08]}  Kg3 {[%clk 0:00:58]} 69. a8=Q {[%clk 0:00:08]}  Kh2 {[%clk 0:00:59]} 70. Qh8+ {[%clk 0:00:06]}  Kg3 {[%clk 0:00:59]} 71. Qhh3# {[%clk 0:00:07]} 1-0


[Site "https://www.chess.com"]

[Event "Titled Tuesday Blitz June 21 Early 2022"]
[White "Yaksin, Oleg"]
[Black "Ursan, Petru-Sebastian"]
[WhiteFideId "24105880"]
[BlackFideId "1227556"]
[WhiteElo "2256"]
[BlackElo "2066"]
[Result "0-1"]
[Round "06"]
[TimeControl "180+1"]
[Date "2022.06.21"]
[WhiteClock "0:00:24"]
[BlackClock "0:00:35"]

1. d4 {[%clk 0:02:56]}  d6 {[%clk 0:02:52]} 2. c4 {[%clk 0:02:56]}  e5 {[%clk 0:02:52]} 3. dxe5 {[%clk 0:02:56]}  dxe5 {[%clk 0:02:53]} 4. Qxd8+ {[%clk 0:02:56]}  Kxd8 {[%clk 0:02:54]} 5. Nc3 {[%clk 0:02:57]}  c6 {[%clk 0:02:55]} 6. b3 {[%clk 0:02:57]}  Bb4 {[%clk 0:02:53]} 7. Bb2 {[%clk 0:02:57]}  Kc7 {[%clk 0:02:53]} 8. O-O-O {[%clk 0:02:57]}  f6 {[%clk 0:02:51]} 9. g3 {[%clk 0:02:45]}  Ne7 {[%clk 0:02:49]} 10. Bg2 {[%clk 0:02:43]}  Be6 {[%clk 0:02:49]} 11. Ne4 {[%clk 0:02:37]}  Nf5 {[%clk 0:02:09]} 12. Nf3 {[%clk 0:02:14]}  Na6 {[%clk 0:02:06]} 13. g4 {[%clk 0:02:11]}  Nd6 {[%clk 0:02:01]} 14. Nxd6 {[%clk 0:02:05]}  Bxd6 {[%clk 0:02:02]} 15. h3 {[%clk 0:02:04]}  Rhd8 {[%clk 0:02:02]} 16. Nd2 {[%clk 0:02:01]}  Bc5 {[%clk 0:01:57]} 17. Ne4 {[%clk 0:01:59]}  Be7 {[%clk 0:01:56]} 18. a3 {[%clk 0:01:48]}  Nc5 {[%clk 0:01:54]} 19. Kc2 {[%clk 0:01:44]}  a5 {[%clk 0:01:50]} 20. e3 {[%clk 0:01:28]}  Nxe4 {[%clk 0:01:39]} 21. Bxe4 {[%clk 0:01:29]}  a4 {[%clk 0:01:40]} 22. b4 {[%clk 0:01:14]}  Bxc4 {[%clk 0:01:37]} 23. Rxd8 {[%clk 0:01:14]}  Rxd8 {[%clk 0:01:36]} 24. Bxh7 {[%clk 0:01:14]}  Bd5 {[%clk 0:01:30]} 25. Rh2 {[%clk 0:01:05]}  Bb3+ {[%clk 0:01:26]} 26. Kc3 {[%clk 0:01:05]}  f5 {[%clk 0:01:05]} 27. e4 {[%clk 0:00:40]}  Bg5 {[%clk 0:00:53]} 28. f3 {[%clk 0:00:34]}  Be3 {[%clk 0:00:46]} 29. exf5 {[%clk 0:00:25]}  Bd4+ {[%clk 0:00:43]} 30. Kd3 {[%clk 0:00:25]}  Bg1+ {[%clk 0:00:41]} 31. Ke4 {[%clk 0:00:24]}  Bxh2 {[%clk 0:00:41]} 32. g5 {[%clk 0:00:24]}  Bc2+ {[%clk 0:00:39]} 33. Ke3 {[%clk 0:00:23]}  Bf4+ {[%clk 0:00:39]} 34. Ke2 {[%clk 0:00:23]}  Bxg5 {[%clk 0:00:40]} 35. Bxe5+ {[%clk 0:00:21]}  Kb6 {[%clk 0:00:40]} 36. Bxg7 {[%clk 0:00:20]}  Rd7 {[%clk 0:00:36]} 37. f6 {[%clk 0:00:17]}  Bxh7 {[%clk 0:00:36]} 38. f4 {[%clk 0:00:15]}  Bxf4 {[%clk 0:00:34]} 39. Kf3 {[%clk 0:00:16]}  Be5 {[%clk 0:00:32]} 40. Kg4 {[%clk 0:00:14]}  Rxg7+ {[%clk 0:00:32]} 41. fxg7 {[%clk 0:00:13]}  Bxg7 {[%clk 0:00:33]} 42. h4 {[%clk 0:00:14]}  Kb5 {[%clk 0:00:33]} 43. h5 {[%clk 0:00:14]}  Kc4 {[%clk 0:00:34]} 44. h6 {[%clk 0:00:14]}  Bxh6 {[%clk 0:00:35]} 45. Kh5 {[%clk 0:00:15]}  Kb3 {[%clk 0:00:35]} 46. b5 {[%clk 0:00:15]}  Kxa3 {[%clk 0:00:35]} 47. bxc6 {[%clk 0:00:16]}  bxc6 {[%clk 0:00:36]} 48. Kxh6 {[%clk 0:00:16]}  Kb4 {[%clk 0:00:37]} 49. Kg7 {[%clk 0:00:16]}  c5 {[%clk 0:00:38]} 50. Kf6 {[%clk 0:00:17]}  c4 {[%clk 0:00:38]} 51. Ke5 {[%clk 0:00:18]}  c3 {[%clk 0:00:39]} 52. Kd5 {[%clk 0:00:18]}  Kb3 {[%clk 0:00:40]} 53. Ke5 {[%clk 0:00:19]}  a3 {[%clk 0:00:40]} 54. Kf4 {[%clk 0:00:20]}  c2 {[%clk 0:00:41]} 55. Ke3 {[%clk 0:00:21]}  Kb2 {[%clk 0:00:41]} 56. Kd4 {[%clk 0:00:22]}  c1=Q {[%clk 0:00:42]} 57. Ke5 {[%clk 0:00:23]}  Qd2 {[%clk 0:00:42]} 58. Kf6 {[%clk 0:00:22]}  a2 {[%clk 0:00:42]} 59. Ke6 {[%clk 0:00:23]}  a1=R {[%clk 0:00:42]} 60. Ke5 {[%clk 0:00:24]}  Ra3 {[%clk 0:00:42]} 61. Ke6 {[%clk 0:00:23]}  Bc2 {[%clk 0:00:42]} 62. Ke5 {[%clk 0:00:23]}  Qc3+ {[%clk 0:00:42]} 63. Kf4 {[%clk 0:00:23]}  Ra4+ {[%clk 0:00:42]} 64. Kg5 {[%clk 0:00:23]}  Qc5+ {[%clk 0:00:43]} 65. Kh6 {[%clk 0:00:24]}  Ra6+ {[%clk 0:00:43]} 66. Kg7 {[%clk 0:00:24]}  Qc7+ {[%clk 0:00:44]} 67. Kh8 {[%clk 0:00:25]}  Rh6+ {[%clk 0:00:41]} 68. Kg8 {[%clk 0:00:24]}  Rg6+ {[%clk 0:00:40]} 69. Kh8 {[%clk 0:00:24]}  Qh2# {[%clk 0:00:35]} 0-1


[Site "https://www.chess.com"]

[Event "Titled Tuesday Blitz June 21 Early 2022"]
[White "parintele_chess"]
[Black "Bintang, Rasyid A. Hidayat"]
[BlackFideId "7105355"]
[WhiteElo "2242"]
[BlackElo "2411"]
[Result "0-1"]
[Round "06"]
[TimeControl "180+1"]
[Date "2022.06.21"]
[WhiteClock "0:00:20"]
[BlackClock "0:01:29"]

1. d4 {[%clk 0:02:59]}  d5 {[%clk 0:02:59]} 2. c4 {[%clk 0:02:59]}  Nc6 {[%clk 0:02:59]} 3. Nc3 {[%clk 0:02:58]}  Nf6 {[%clk 0:02:57]} 4. cxd5 {[%clk 0:02:56]}  Nxd5 {[%clk 0:02:57]} 5. e4 {[%clk 0:02:56]}  Nxc3 {[%clk 0:02:57]} 6. bxc3 {[%clk 0:02:57]}  e5 {[%clk 0:02:58]} 7. d5 {[%clk 0:02:56]}  Nb8 {[%clk 0:02:55]} 8. Nf3 {[%clk 0:02:56]}  Bd6 {[%clk 0:02:55]} 9. Bd3 {[%clk 0:02:50]}  O-O {[%clk 0:02:54]} 10. O-O {[%clk 0:02:50]}  Nd7 {[%clk 0:02:54]} 11. Be3 {[%clk 0:02:48]}  Qe7 {[%clk 0:02:51]} 12. Rc1 {[%clk 0:02:42]}  Bc5 {[%clk 0:02:51]} 13. Bxc5 {[%clk 0:02:35]}  Nxc5 {[%clk 0:02:52]} 14. Bb1 {[%clk 0:02:35]}  Bg4 {[%clk 0:02:50]} 15. h3 {[%clk 0:02:35]}  Bh5 {[%clk 0:02:50]} 16. g4 {[%clk 0:02:34]}  Bg6 {[%clk 0:02:50]} 17. Kg2 {[%clk 0:02:25]}  Bxe4 {[%clk 0:02:47]} 18. Bxe4 {[%clk 0:02:24]}  Nxe4 {[%clk 0:02:48]} 19. Re1 {[%clk 0:02:25]}  f5 {[%clk 0:02:27]} 20. gxf5 {[%clk 0:02:21]}  Nd6 {[%clk 0:02:25]} 21. Rxe5 {[%clk 0:02:18]}  Qf6 {[%clk 0:02:24]} 22. Re6 {[%clk 0:01:56]}  Qxf5 {[%clk 0:02:23]} 23. c4 {[%clk 0:01:40]}  Rae8 {[%clk 0:02:07]} 24. Qe2 {[%clk 0:01:24]}  Ne4 {[%clk 0:01:54]} 25. Rxe8 {[%clk 0:01:13]}  Rxe8 {[%clk 0:01:54]} 26. Re1 {[%clk 0:01:07]}  Qg6+ {[%clk 0:01:52]} 27. Kh2 {[%clk 0:00:57]}  Nd6 {[%clk 0:01:52]} 28. Qf1 {[%clk 0:00:33]}  Rxe1 {[%clk 0:01:39]} 29. Nxe1 {[%clk 0:00:31]}  Qe4 {[%clk 0:01:36]} 30. c5 {[%clk 0:00:27]}  Nc4 {[%clk 0:01:35]} 31. Qh1 {[%clk 0:00:21]}  Qe5+ {[%clk 0:01:30]} 32. Kg1 {[%clk 0:00:20]}  Qxe1+ {[%clk 0:01:29]} 0-1


[Site "https://www.chess.com"]

[Event "Titled Tuesday Blitz June 21 Early 2022"]
[White "Aldokhin, Ivan"]
[Black "Pham, Le Thao Nguyen"]
[WhiteFideId "24115720"]
[BlackFideId "12401226"]
[WhiteElo "2231"]
[BlackElo "2282"]
[Result "0-1"]
[Round "07"]
[TimeControl "180+1"]
[Date "2022.06.22"]
[WhiteClock "0:00:03"]
[BlackClock "0:00:13"]

1. d4 {[%clk 0:03:00]}  d5 {[%clk 0:02:59]} 2. c4 {[%clk 0:03:01]}  c6 {[%clk 0:03:00]} 3. cxd5 {[%clk 0:03:01]}  cxd5 {[%clk 0:02:46]} 4. Bg5 {[%clk 0:03:01]}  Nc6 {[%clk 0:02:45]} 5. Nc3 {[%clk 0:03:00]}  Nf6 {[%clk 0:02:46]} 6. Bxf6 {[%clk 0:03:00]}  gxf6 {[%clk 0:02:47]} 7. e3 {[%clk 0:03:00]}  e6 {[%clk 0:02:47]} 8. Bd3 {[%clk 0:03:00]}  a6 {[%clk 0:02:44]} 9. Rc1 {[%clk 0:03:00]}  Bd6 {[%clk 0:02:43]} 10. f4 {[%clk 0:02:59]}  Ne7 {[%clk 0:02:14]} 11. Nf3 {[%clk 0:02:57]}  Bd7 {[%clk 0:02:13]} 12. O-O {[%clk 0:02:57]}  Qb6 {[%clk 0:02:13]} 13. Qd2 {[%clk 0:02:54]}  Bb5 {[%clk 0:02:03]} 14. Nxb5 {[%clk 0:02:46]}  axb5 {[%clk 0:02:04]} 15. Bb1 {[%clk 0:02:27]}  h5 {[%clk 0:01:40]} 16. Kh1 {[%clk 0:02:22]}  h4 {[%clk 0:01:38]} 17. h3 {[%clk 0:02:22]}  Kd7 {[%clk 0:01:38]} 18. Rfe1 {[%clk 0:01:49]}  f5 {[%clk 0:01:36]} 19. Qf2 {[%clk 0:01:39]}  Ng6 {[%clk 0:01:24]} 20. Nd2 {[%clk 0:01:24]}  Rhc8 {[%clk 0:01:13]} 21. Nb3 {[%clk 0:01:24]}  Rc4 {[%clk 0:01:13]} 22. Bd3 {[%clk 0:01:09]}  Rxa2 {[%clk 0:01:02]} 23. Bxc4 {[%clk 0:01:04]}  bxc4 {[%clk 0:01:03]} 24. Nc5+ {[%clk 0:01:02]}  Bxc5 {[%clk 0:01:01]} 25. dxc5 {[%clk 0:01:03]}  Qxb2 {[%clk 0:00:49]} 26. Qf3 {[%clk 0:00:56]}  Qf2 {[%clk 0:00:37]} 27. Qxf2 {[%clk 0:00:32]}  Rxf2 {[%clk 0:00:38]} 28. Rb1 {[%clk 0:00:31]}  Kc7 {[%clk 0:00:31]} 29. Rec1 {[%clk 0:00:28]}  Nf8 {[%clk 0:00:27]} 30. Kg1 {[%clk 0:00:19]}  Re2 {[%clk 0:00:26]} 31. Rc3 {[%clk 0:00:18]}  Nd7 {[%clk 0:00:26]} 32. Kf1 {[%clk 0:00:18]}  Ra2 {[%clk 0:00:23]} 33. e4 {[%clk 0:00:05]}  fxe4 {[%clk 0:00:20]} 34. g3 {[%clk 0:00:06]}  Nxc5 {[%clk 0:00:15]} 35. Kg1 {[%clk 0:00:03]}  Nd3 {[%clk 0:00:13]} 36. gxh4 {[%clk 0:00:03]}  Nxf4 {[%clk 0:00:13]} 0-1


[Site "https://www.chess.com"]

[Event "Titled Tuesday Blitz June 21 Early 2022"]
[White "Aradhya, Garg"]
[Black "Krallis, Christos"]
[WhiteFideId "25006746"]
[BlackFideId "4298896"]
[WhiteElo "2203"]
[BlackElo "2234"]
[Result "0-1"]
[Round "07"]
[TimeControl "180+1"]
[Date "2022.06.22"]
[WhiteClock "0:01:21"]
[BlackClock "0:00:28"]

1. d4 {[%clk 0:02:55]}  Nf6 {[%clk 0:02:59]} 2. Nf3 {[%clk 0:02:55]}  d5 {[%clk 0:02:57]} 3. c4 {[%clk 0:02:55]}  e6 {[%clk 0:02:58]} 4. Nc3 {[%clk 0:02:54]}  Be7 {[%clk 0:02:58]} 5. Bf4 {[%clk 0:02:53]}  O-O {[%clk 0:02:57]} 6. g3 {[%clk 0:02:54]}  c5 {[%clk 0:02:47]} 7. cxd5 {[%clk 0:02:53]}  exd5 {[%clk 0:02:37]} 8. Bg2 {[%clk 0:02:52]}  Nc6 {[%clk 0:02:32]} 9. O-O {[%clk 0:02:52]}  h6 {[%clk 0:02:15]} 10. Rc1 {[%clk 0:02:50]}  c4 {[%clk 0:02:08]} 11. Ne5 {[%clk 0:02:48]}  Be6 {[%clk 0:02:05]} 12. b3 {[%clk 0:02:47]}  cxb3 {[%clk 0:02:03]} 13. Nxc6 {[%clk 0:02:46]}  bxc6 {[%clk 0:02:04]} 14. axb3 {[%clk 0:02:46]}  Nh5 {[%clk 0:01:53]} 15. Bd2 {[%clk 0:02:24]}  Nf6 {[%clk 0:01:46]} 16. Bf4 {[%clk 0:02:23]}  Nh5 {[%clk 0:01:46]} 17. Be3 {[%clk 0:02:23]}  f5 {[%clk 0:01:25]} 18. Na4 {[%clk 0:02:20]}  Qd7 {[%clk 0:01:22]} 19. Qc2 {[%clk 0:01:59]}  Rac8 {[%clk 0:01:10]} 20. Nc5 {[%clk 0:01:50]}  Bxc5 {[%clk 0:01:09]} 21. Qxc5 {[%clk 0:01:50]}  f4 {[%clk 0:01:10]} 22. Bd2 {[%clk 0:01:50]}  fxg3 {[%clk 0:00:59]} 23. hxg3 {[%clk 0:01:49]}  Bh3 {[%clk 0:00:57]} 24. Rc3 {[%clk 0:01:47]}  Bxg2 {[%clk 0:00:55]} 25. Kxg2 {[%clk 0:01:47]}  Nf6 {[%clk 0:00:56]} 26. f3 {[%clk 0:01:38]}  Rce8 {[%clk 0:00:53]} 27. Re3 {[%clk 0:01:36]}  Rxe3 {[%clk 0:00:50]} 28. Bxe3 {[%clk 0:01:37]}  Qe6 {[%clk 0:00:48]} 29. Qc3 {[%clk 0:01:34]}  Re8 {[%clk 0:00:48]} 30. Bf4 {[%clk 0:01:31]}  Qxe2+ {[%clk 0:00:47]} 31. Rf2 {[%clk 0:01:31]}  Qb5 {[%clk 0:00:47]} 32. Be5 {[%clk 0:01:31]}  Nd7 {[%clk 0:00:46]} 33. f4 {[%clk 0:01:31]}  c5 {[%clk 0:00:38]} 34. dxc5 {[%clk 0:01:28]}  Nxc5 {[%clk 0:00:38]} 35. Bxg7 {[%clk 0:01:28]}  Ne4 {[%clk 0:00:37]} 36. Qc7 {[%clk 0:01:21]}  Qd3 {[%clk 0:00:28]} 0-1


[Site "https://www.chess.com"]

[Event "Titled Tuesday Blitz June 21 Early 2022"]
[White "Araujo Sanchez, Josue"]
[Black "Kvon, Andrey"]
[WhiteFideId "6416896"]
[BlackFideId "14201356"]
[WhiteElo "2339"]
[BlackElo "2458"]
[Result "0-1"]
[Round "07"]
[TimeControl "180+1"]
[Date "2022.06.22"]
[WhiteClock "0:00:03"]
[BlackClock "0:00:13"]

1. d4 {[%clk 0:03:00]}  Nf6 {[%clk 0:02:56]} 2. Bg5 {[%clk 0:03:00]}  c5 {[%clk 0:02:56]} 3. Bxf6 {[%clk 0:03:00]}  gxf6 {[%clk 0:02:55]} 4. Nc3 {[%clk 0:02:54]}  cxd4 {[%clk 0:02:54]} 5. Qxd4 {[%clk 0:02:53]}  Nc6 {[%clk 0:02:55]} 6. Qh4 {[%clk 0:02:53]}  Qa5 {[%clk 0:02:55]} 7. O-O-O {[%clk 0:02:53]}  Qg5+ {[%clk 0:02:55]} 8. Qxg5 {[%clk 0:02:50]}  fxg5 {[%clk 0:02:56]} 9. h4 {[%clk 0:02:44]}  g4 {[%clk 0:02:52]} 10. e4 {[%clk 0:02:44]}  d6 {[%clk 0:02:51]} 11. Nd5 {[%clk 0:02:44]}  Kd8 {[%clk 0:02:50]} 12. Ne2 {[%clk 0:02:41]}  e6 {[%clk 0:02:39]} 13. Nf6 {[%clk 0:02:34]}  Ne5 {[%clk 0:02:33]} 14. Ng3 {[%clk 0:02:27]}  Ke7 {[%clk 0:02:30]} 15. Nfh5 {[%clk 0:02:25]}  Bd7 {[%clk 0:02:28]} 16. Be2 {[%clk 0:02:23]}  Rc8 {[%clk 0:02:27]} 17. Kb1 {[%clk 0:02:22]}  a6 {[%clk 0:02:27]} 18. f4 {[%clk 0:02:22]}  gxf3 {[%clk 0:02:26]} 19. gxf3 {[%clk 0:02:22]}  Rg8 {[%clk 0:02:21]} 20. f4 {[%clk 0:02:20]}  Nc4 {[%clk 0:02:20]} 21. f5 {[%clk 0:02:09]}  Ne5 {[%clk 0:02:10]} 22. Rhg1 {[%clk 0:02:05]}  Bc6 {[%clk 0:02:02]} 23. Nf4 {[%clk 0:01:49]}  Bh6 {[%clk 0:01:49]} 24. Rdf1 {[%clk 0:01:45]}  Kd7 {[%clk 0:01:21]} 25. Ngh5 {[%clk 0:01:33]}  Rxg1 {[%clk 0:01:20]} 26. Rxg1 {[%clk 0:01:33]}  Ke7 {[%clk 0:01:20]} 27. Bd3 {[%clk 0:01:16]}  Nf3 {[%clk 0:01:06]} 28. f6+ {[%clk 0:00:43]}  Kd7 {[%clk 0:01:03]} 29. Rg7 {[%clk 0:00:43]}  Bxg7 {[%clk 0:01:00]} 30. fxg7 {[%clk 0:00:43]}  Ke7 {[%clk 0:01:00]} 31. e5 {[%clk 0:00:28]}  dxe5 {[%clk 0:00:52]} 32. Nxe6 {[%clk 0:00:25]}  Kxe6 {[%clk 0:00:41]} 33. Bxh7 {[%clk 0:00:23]}  Nxh4 {[%clk 0:00:40]} 34. g8=Q {[%clk 0:00:23]}  Rxg8 {[%clk 0:00:40]} 35. Bxg8 {[%clk 0:00:24]}  Be4 {[%clk 0:00:40]} 36. Ng3 {[%clk 0:00:23]}  Bg6 {[%clk 0:00:40]} 37. Kc1 {[%clk 0:00:20]}  Nf5 {[%clk 0:00:39]} 38. Ne4 {[%clk 0:00:20]}  Ne7 {[%clk 0:00:34]} 39. Nc5+ {[%clk 0:00:19]}  Kd5 {[%clk 0:00:34]} 40. Bxf7+ {[%clk 0:00:20]}  Bxf7 {[%clk 0:00:33]} 41. Nxb7 {[%clk 0:00:21]}  Nc6 {[%clk 0:00:33]} 42. b3 {[%clk 0:00:18]}  e4 {[%clk 0:00:26]} 43. Kd2 {[%clk 0:00:18]}  Ne5 {[%clk 0:00:22]} 44. Ke3 {[%clk 0:00:15]}  Ng4+ {[%clk 0:00:21]} 45. Kf4 {[%clk 0:00:15]}  e3 {[%clk 0:00:19]} 46. Kf3 {[%clk 0:00:12]}  Kd4 {[%clk 0:00:20]} 47. Nd6 {[%clk 0:00:13]}  Bd5+ {[%clk 0:00:20]} 48. Ke2 {[%clk 0:00:11]}  Bc6 {[%clk 0:00:15]} 49. a4 {[%clk 0:00:08]}  Ke5 {[%clk 0:00:14]} 50. Nc4+ {[%clk 0:00:08]}  Kf4 {[%clk 0:00:14]} 51. c3 {[%clk 0:00:07]}  Bf3+ {[%clk 0:00:14]} 52. Kd3 {[%clk 0:00:05]}  Nf2+ {[%clk 0:00:14]} 53. Kc2 {[%clk 0:00:04]}  Be4+ {[%clk 0:00:14]} 54. Kc1 {[%clk 0:00:04]}  Kf3 {[%clk 0:00:14]} 55. Nxe3 {[%clk 0:00:03]}  Kxe3 {[%clk 0:00:14]} 56. b4 {[%clk 0:00:04]}  Nd3+ {[%clk 0:00:14]} 57. Kd1 {[%clk 0:00:03]}  Bd5 {[%clk 0:00:13]} 58. b5 {[%clk 0:00:03]}  Bb3# {[%clk 0:00:13]} 0-1


[Site "https://www.chess.com"]

[Event "Titled Tuesday Blitz June 21 Early 2022"]
[White "Barria Zuniga, Daniel"]
[Black "Kopczynski, Michal"]
[WhiteFideId "3400816"]
[BlackFideId "1124200"]
[WhiteElo "2414"]
[BlackElo "2235"]
[Result "1-0"]
[Round "07"]
[TimeControl "180+1"]
[Date "2022.06.22"]
[WhiteClock "0:00:26"]
[BlackClock "0:00:23"]

1. d4 {[%clk 0:03:00]}  Nf6 {[%clk 0:02:56]} 2. c4 {[%clk 0:03:00]}  g6 {[%clk 0:02:57]} 3. Nc3 {[%clk 0:03:00]}  Bg7 {[%clk 0:02:56]} 4. e4 {[%clk 0:03:00]}  d6 {[%clk 0:02:56]} 5. Be2 {[%clk 0:03:00]}  O-O {[%clk 0:02:57]} 6. Nf3 {[%clk 0:03:01]}  e5 {[%clk 0:02:57]} 7. d5 {[%clk 0:03:01]}  Ne8 {[%clk 0:02:55]} 8. h4 {[%clk 0:03:00]}  c5 {[%clk 0:02:54]} 9. h5 {[%clk 0:02:59]}  Bg4 {[%clk 0:02:49]} 10. hxg6 {[%clk 0:02:56]}  fxg6 {[%clk 0:02:48]} 11. Ng5 {[%clk 0:02:53]}  Bxe2 {[%clk 0:02:47]} 12. Qxe2 {[%clk 0:02:53]}  Nc7 {[%clk 0:02:39]} 13. Nxh7 {[%clk 0:02:51]}  Rf4 {[%clk 0:02:34]} 14. g3 {[%clk 0:02:48]}  Rf7 {[%clk 0:02:30]} 15. Qg4 {[%clk 0:02:41]}  Nd7 {[%clk 0:02:11]} 16. Qxg6 {[%clk 0:02:27]}  Nf8 {[%clk 0:02:11]} 17. Nxf8 {[%clk 0:02:27]}  Kxf8 {[%clk 0:02:12]} 18. Bg5 {[%clk 0:01:27]}  Qd7 {[%clk 0:01:59]} 19. Rh7 {[%clk 0:01:27]}  Ne8 {[%clk 0:01:49]} 20. Nd1 {[%clk 0:01:04]}  Rf3 {[%clk 0:01:04]} 21. Ne3 {[%clk 0:00:59]}  Qf7 {[%clk 0:01:03]} 22. Qxf7+ {[%clk 0:00:58]}  Kxf7 {[%clk 0:01:04]} 23. Ke2 {[%clk 0:00:57]}  Rxe3+ {[%clk 0:00:51]} 24. Bxe3 {[%clk 0:00:55]}  Kg6 {[%clk 0:00:51]} 25. Rh4 {[%clk 0:00:52]}  Nf6 {[%clk 0:00:51]} 26. f3 {[%clk 0:00:51]}  b5 {[%clk 0:00:51]} 27. cxb5 {[%clk 0:00:50]}  Rb8 {[%clk 0:00:51]} 28. a4 {[%clk 0:00:46]}  a6 {[%clk 0:00:51]} 29. bxa6 {[%clk 0:00:46]}  Rxb2+ {[%clk 0:00:52]} 30. Kd3 {[%clk 0:00:46]}  Nd7 {[%clk 0:00:47]} 31. a5 {[%clk 0:00:43]}  Rb3+ {[%clk 0:00:38]} 32. Kc2 {[%clk 0:00:39]}  Rb8 {[%clk 0:00:33]} 33. Kc3 {[%clk 0:00:36]}  Ra8 {[%clk 0:00:32]} 34. Kc4 {[%clk 0:00:36]}  Rxa6 {[%clk 0:00:28]} 35. Kb5 {[%clk 0:00:35]}  Nb8 {[%clk 0:00:27]} 36. Rg4+ {[%clk 0:00:34]}  Kf7 {[%clk 0:00:26]} 37. Rh1 {[%clk 0:00:35]}  Ra7 {[%clk 0:00:24]} 38. Rh7 {[%clk 0:00:33]}  Kg8 {[%clk 0:00:24]} 39. Rhxg7+ {[%clk 0:00:31]}  Rxg7 {[%clk 0:00:23]} 40. Rxg7+ {[%clk 0:00:32]}  Kxg7 {[%clk 0:00:23]} 41. Kb6 {[%clk 0:00:31]}  c4 {[%clk 0:00:23]} 42. Kb7 {[%clk 0:00:29]}  c3 {[%clk 0:00:23]} 43. a6 {[%clk 0:00:29]}  c2 {[%clk 0:00:24]} 44. Kxb8 {[%clk 0:00:26]}  c1=Q {[%clk 0:00:23]} 45. Bxc1 {[%clk 0:00:26]} 1-0


[Site "https://www.chess.com"]